lending/lending_fUSD_20240110
["ID","MTS","AMOUNT","RATE_DAILY","PERIOD"]
[311035749,1704881434770,-500.0,0.00030136,2]
[311035750,1704881434779,-500.0,0.00030136,2]
[311035751,1704881434788,-500.0,0.00030136,2]
[311035752,1704881434797,-500.0,0.00030136,2]
[311035753,1704881434806,-500.0,0.00030136,2]
[311035754,1704881434815,-887.25,0.00030136,2]
[311035755,1704881434823,-573.93,0.00030136,2]
[311035756,1704881434833,-770.93,0.00030136,2]
[311035757,1704881434842,-500.0,0.00030136,2]
[311035758,1704881434850,-519.72204992,0.00030136,2]
[311035759,1704881434860,-500.0,0.00030136,2]
[311035760,1704881434869,-500.0,0.00030136,2]
[311035761,1704881434879,-500.0,0.00030136,2]
[311035762,1704881434888,-500.0,0.00030136,2]
[311035763,1704881434898,-500.0,0.00030136,2]
[311035764,1704881434907,-500.0,0.00030136,2]
[311035765,1704881434916,-550.27,0.00030136,2]
[311035766,1704881434926,-500.0,0.00030136,2]
[311035767,1704881434936,-500.0,0.00030136,2]
[311035768,1704881434945,-697.16,0.00030136,2]
[311035769,1704881434954,-500.0,0.00030136,2]
[311035770,1704881434963,-500.0,0.00030136,2]
[311035771,1704881434973,-508.71246282,0.00030136,2]
[311035772,1704881434982,-500.0,0.00030136,2]
[311035773,1704881434991,-500.0,0.00030136,2]
[311035774,1704881435000,-500.0,0.00030136,2]
[311035775,1704881435010,-725.69,0.00030136,2]
[311035776,1704881435020,-500.0,0.00030136,2]
[311035777,1704881435032,-500.0,0.00030136,2]
[311035778,1704881435041,-975.91,0.00030136,2]
[311035779,1704881435052,-747.09,0.00030136,2]
[311035780,1704881435061,-668.92,0.00030136,2]
[311035781,1704881435071,-1000.0,0.00030136,2]
[311035782,1704881435080,-504.81215214,0.00030136,2]
[311035783,1704881435090,-500.0,0.00030136,2]
[311035784,1704881435101,-932.52,0.00030136,2]
[311035785,1704881435111,-500.0,0.00030136,2]
[311035786,1704881435121,-500.0,0.00030136,2]
[311035787,1704881435131,-1000.0,0.00030136,2]
[311035788,1704881435140,-506.2344252,0.00030136,2]
[311035789,1704881435149,-535.68365031,0.00030136,10]
[311035790,1704881435159,-500.0,0.00030136,2]
[311035791,1704881435168,-500.0,0.00030136,2]
[311035792,1704881435179,-501.27232444,0.00030136,2]
[311035793,1704881435188,-500.0,0.00030136,2]
[311035794,1704881435198,-500.0,0.00030136,2]
[311035795,1704881435208,-352.7853976,0.00030136,2]
[311035796,1704881435217,-501.25,0.00030136,2]
[311035797,1704881435226,-182.86917163,0.00030136,2]
[311035798,1704881435235,-506.44139827,0.00030136,2]
[311035799,1704881435245,-518.8105578,0.00030136,2]
[311035800,1704881435254,-506.0739059,0.00030136,2]
[311035801,1704881435263,-500.0,0.00030136,2]
[311035802,1704881435273,-269.2080933,0.00030136,2]
[311035803,1704881435282,-500.0,0.00030136,2]
[311035804,1704881435291,-500.0,0.00030136,2]
[311035805,1704881435300,-500.0,0.00030136,2]
[311035806,1704881435309,-693.34,0.00030136,2]
[311035807,1704881435319,-500.0,0.00030136,2]
[311035808,1704881435328,-678.0,0.00030136,2]
[311035809,1704881435337,-500.0,0.00030136,2]
[311035810,1704881435347,-500.0,0.00030136,2]
[311035811,1704881435356,-503.93844821,0.00030136,2]
[311035812,1704881435366,-500.0,0.00030136,2]
[311035813,1704881435376,-917.72,0.00030136,2]
[311035814,1704881435385,-592.97,0.00030136,2]
[311035815,1704881435394,-634.18,0.00030136,2]
[311035816,1704881435403,-500.0,0.00030136,2]
[311035817,1704881435412,-326.33784189,0.00030136,2]
[311035818,1704881435421,-766.4,0.00030136,2]
[311035819,1704881435432,-602.83285251,0.00030136,2]
[311035820,1704881435441,-511.18923692,0.00030136,2]
[311035821,1704881435451,-510.54,0.00030136,2]
[311035822,1704881435460,-572.26,0.00030136,2]
[311035823,1704881435469,-500.0,0.00030136,2]
[311035824,1704881435478,-509.02746189,0.00030136,2]
[311035825,1704881435487,-500.0,0.00030136,2]
[311035826,1704881435497,-534.94795464,0.00030136,2]
[311035827,1704881435506,-500.0,0.00030136,2]
[311035828,1704881435516,-500.0,0.00030136,2]
[311035829,1704881435525,-659.51,0.00030136,2]
[311035830,1704881435534,-500.0,0.00030136,2]
[311035831,1704881435544,-500.0,0.00030136,2]
[311035832,1704881435553,-579.44,0.00030136,2]
[311035833,1704881435563,-500.0,0.00030136,2]
[311035834,1704881435572,-500.0,0.00030136,2]
[311035835,1704881435581,-500.0,0.00030136,2]
[311035836,1704881435590,-627.88,0.00030136,2]
[311035837,1704881435599,-500.0,0.00030136,2]
[311035838,1704881435609,-500.0,0.00030136,2]
[311035839,1704881435618,-500.0,0.00030136,2]
[311035840,1704881435627,-500.0,0.00030136,2]
[311035841,1704881435636,-500.0,0.00030136,2]
[311035842,1704881435646,-502.40007754,0.00030136,2]
[311035843,1704881435655,-500.0,0.00030136,2]
[311035844,1704881435664,-500.0,0.00030136,2]
[311035845,1704881435673,-500.0,0.00030136,2]
[311035846,1704881435683,-500.0,0.00030136,2]
[311035847,1704881435692,-500.0,0.00030136,2]
[311035848,1704881435701,-500.0,0.00030136,2]
[311035849,1704881435711,-500.0,0.00030136,2]
[311035850,1704881435720,-500.0,0.00030136,2]
[311035851,1704881435729,-500.0,0.00030136,2]
[311035852,1704881435738,-783.55,0.00030136,2]
[311035853,1704881435747,-500.0,0.00030136,2]
[311035854,1704881435757,-500.0,0.00030136,2]
[311035855,1704881435767,-500.0,0.00030136,2]
[311035856,1704881435777,-500.0,0.00030136,2]
[311035857,1704881435786,-500.0,0.00030136,2]
[311035858,1704881435796,-500.0,0.00030136,2]
[311035859,1704881435805,-500.0,0.00030136,2]
[311035860,1704881435815,-500.0,0.00030136,2]
[311035861,1704881435824,-683.02,0.00030136,2]
[311035862,1704881435833,-500.0,0.00030136,2]
[311035863,1704881435842,-500.0,0.00030136,2]
[311035864,1704881435852,-500.0,0.00030136,2]
[311035865,1704881435861,-500.0,0.00030136,2]
[311035866,1704881435870,-500.0,0.00030136,2]
[311035867,1704881435880,-500.0,0.00030136,2]
[311035868,1704881435889,-680.19,0.00030136,2]
[311035869,1704881435898,-502.93168141,0.00030136,2]
[311035870,1704881435908,-500.0,0.00030136,2]
[311035871,1704881435918,-500.0,0.00030136,2]
[311035872,1704881435928,-517.22,0.00030136,2]
[311035873,1704881435938,-1113.08,0.00030136,2]
[311035874,1704881435949,-488.40146559,0.00030136,2]
[311035875,1704881435960,-500.0,0.00030136,2]
[311035876,1704881435971,-548.12,0.00030136,2]
[311035877,1704881435982,-525.15,0.00030136,2]
[311035878,1704881435992,-500.0,0.00030136,2]
[311035879,1704881436002,-500.0,0.00030136,2]
[311035880,1704881436012,-500.0,0.00030136,2]
[311035881,1704881436022,-717.68,0.00030136,2]
[311035882,1704881436036,-500.0,0.00030136,2]
[311035883,1704881436046,-500.0,0.00030136,2]
[311035884,1704881436056,-1045.79,0.00030136,2]
[311035885,1704881436066,-502.8244234,0.00030136,2]
[311035886,1704881436076,-238.05720864,0.00030136,2]
[311035887,1704881436085,-500.0,0.00030136,2]
[311035888,1704881436095,-500.0,0.00030136,2]
[311035889,1704881436105,-630.06,0.00030136,2]
[311035890,1704881436114,-562.16,0.00030136,2]
[311035891,1704881436124,-500.0,0.00030136,2]
[311035892,1704881436134,-502.69616183,0.00030136,2]
[311035893,1704881436144,-500.0,0.00030136,2]
[311035894,1704881436153,-681.02,0.00030136,2]
[311035895,1704881436163,-500.0,0.00030136,2]
[311035896,1704881436173,-500.0,0.00030136,2]
[311035897,1704881436183,-500.0,0.00030136,2]
[311035898,1704881436193,-571.35,0.00030136,2]
[311035899,1704881436202,-500.0,0.00030136,2]
[311035900,1704881436212,-500.0,0.00030136,2]
[311035901,1704881436222,-500.0,0.00030136,2]
[311035902,1704881436231,-613.96,0.00030136,2]
[311035903,1704881436241,-500.0,0.00030136,2]
[311035904,1704881436250,-520.0,0.00030136,2]
[311035905,1704881436260,-502.26022751,0.00030136,2]
[311035906,1704881436270,-500.0,0.00030136,2]
[311035907,1704881436279,-500.0,0.00030136,2]
[311035908,1704881436288,-500.0,0.00030136,2]
[311035909,1704881436298,-502.62350245,0.00030136,2]
[311035910,1704881436308,-500.0,0.00030136,2]
[311035911,1704881436318,-500.0,0.00030136,2]
[311035912,1704881436327,-500.0,0.00030136,2]
[311035913,1704881436337,-505.11978075,0.00030136,2]
[311035914,1704881436346,-500.0,0.00030136,2]
[311035915,1704881436356,-1721.35,0.00030136,2]
[311035916,1704881436365,-500.0,0.00030136,2]
[311035917,1704881436375,-641.32,0.00030136,2]
[311035918,1704881436384,-500.0,0.00030136,2]
[311035919,1704881436394,-500.0,0.00030136,2]
[311035920,1704881436404,-500.0,0.00030136,2]
[311035921,1704881436414,-917.63,0.00030136,2]
[311035922,1704881436423,-500.0,0.00030136,2]
[311035923,1704881436433,-500.0,0.00030136,2]
[311035924,1704881436444,-500.0,0.00030136,2]
[311035925,1704881436454,-500.0,0.00030136,2]
[311035926,1704881436463,-500.0,0.00030136,2]
[311035927,1704881436473,-637.58,0.00030136,2]
[311035928,1704881436482,-500.0,0.00030136,2]
[311035929,1704881436491,-500.0,0.00030136,2]
[311035930,1704881436501,-503.95,0.00030136,2]
[311035931,1704881436510,-726.1,0.00030136,2]
[311035932,1704881436519,-500.0,0.00030136,2]
[311035933,1704881436528,-527.31,0.00030136,2]
[311035934,1704881436538,-500.0,0.00030136,2]
[311035935,1704881436547,-678.2,0.00030136,2]
[311035936,1704881436557,-775.66,0.00030136,2]
[311035937,1704881436566,-500.0,0.00030136,2]
[311035938,1704881436575,-626.81,0.00030136,2]
[311035939,1704881436585,-1703.29,0.00030136,2]
[311035940,1704881436595,-500.0,0.00030136,2]
[311035941,1704881436604,-1018.17,0.00030136,2]
[311035942,1704881436614,-500.0,0.00030136,2]
[311035943,1704881436624,-1078.3,0.00030136,2]
[311035944,1704881436633,-500.0,0.00030136,2]
[311035945,1704881436642,-500.0,0.00030136,2]
[311035946,1704881436652,-623.72,0.00030136,2]
[311035947,1704881436661,-792.37,0.00030136,2]
[311035948,1704881436671,-758.43,0.00030136,2]
[311035949,1704881436683,-623.08,0.00030136,2]
[311035950,1704881436692,-1000.0,0.00030136,2]
[311035951,1704881436702,-653.41,0.00030136,2]
[311035952,1704881436713,-828.92,0.00030136,2]
[311035953,1704881436723,-1471.92,0.00030136,2]
[311035954,1704881436733,-500.0,0.00030136,2]
[311035955,1704881436743,-500.0,0.00030136,2]
[311035956,1704881436753,-581.39,0.00030136,2]
[311035957,1704881436764,-500.0,0.00030136,2]
[311035958,1704881436775,-500.0,0.00030136,2]
[311035959,1704881436785,-500.0,0.00030136,2]
[311035960,1704881436795,-500.0,0.00030136,2]
[311035961,1704881436805,-1338.38,0.00030136,2]
[311035962,1704881436815,-782.19,0.00030136,2]
[311035963,1704881436825,-500.0,0.00030136,2]
[311035964,1704881436835,-500.0,0.00030136,2]
[311035965,1704881436845,-500.0,0.00030136,2]
[311035966,1704881436855,-500.0,0.00030136,2]
[311035967,1704881436865,-500.0,0.00030136,2]
[311035968,1704881436875,-500.0,0.00030136,2]
[311035969,1704881436885,-500.0,0.00030136,2]
[311035970,1704881436895,-1483.17,0.00030136,2]
[311035971,1704881436906,-500.0,0.00030136,2]
[311035972,1704881436915,-500.0,0.00030136,2]
[311035973,1704881436925,-500.0,0.00030136,2]
[311035974,1704881436937,-500.0,0.00030136,2]
[311035975,1704881436947,-500.0,0.00030136,2]
[311035976,1704881436956,-2593.17,0.00030136,2]
[311035977,1704881436966,-926.06,0.00030136,2]
[311035978,1704881436976,-1009.28,0.00030136,2]
[311035979,1704881436985,-736.4,0.00030136,2]
[311035980,1704881436995,-500.0,0.00030136,2]
[311035981,1704881437235,-500.0,0.00030136,2]
[311035982,1704881437263,-500.0,0.00030136,2]
[311035983,1704881437273,-840.78,0.00030136,2]
[311035984,1704881437282,-500.0,0.00030136,2]
[311035985,1704881437292,-500.0,0.00030136,2]
[311035986,1704881437301,-681.22,0.00030136,2]
[311035987,1704881437310,-627.48,0.00030136,2]
[311035988,1704881437320,-908.03,0.00030136,2]
[311035989,1704881437329,-500.0,0.00030136,2]
[311035990,1704881437338,-500.0,0.00030136,2]
[311035991,1704881437348,-824.49,0.00030136,2]
[311035992,1704881437358,-500.0,0.00030136,2]
[311035993,1704881437367,-809.0,0.00030136,2]
[311035994,1704881437377,-500.0,0.00030136,2]
[311035995,1704881437387,-500.0,0.00030136,2]
[311035996,1704881437396,-767.3,0.00030136,2]
[311035997,1704881437405,-556.55,0.00030136,2]
[311035998,1704881437415,-500.0,0.00030136,2]
[311035999,1704881437425,-500.0,0.00030136,2]
[311036000,1704881437436,-1008.64,0.00030136,2]
[311036001,1704881437445,-739.85,0.00030136,2]
[311036002,1704881437455,-1038.62,0.00030136,2]
[311036003,1704881437464,-747.45,0.00030136,2]
[311036004,1704881437474,-500.0,0.00030136,2]
[311036005,1704881437484,-500.0,0.00030136,2]
[311036006,1704881437493,-500.0,0.00030136,2]
[311036007,1704881437503,-542.98,0.00030136,2]
[311036008,1704881437512,-500.0,0.00030136,2]
[311036009,1704881437521,-887.57,0.00030136,2]
[311036010,1704881437530,-510.7,0.00030136,2]
[311036011,1704881437540,-500.0,0.00030136,2]
[311036012,1704881437549,-500.0,0.00030136,2]
[311036013,1704881437559,-612.83233987,0.00030136,2]
[311036014,1704881437568,-500.0,0.00030136,2]
[311036015,1704881437578,-500.0,0.00030136,2]
[311036016,1704881437586,-500.0,0.00030136,2]
[311036017,1704881437595,-500.0,0.00030136,2]
[311036018,1704881437604,-500.0,0.00030136,2]
[311036019,1704881437613,-500.0,0.00030136,2]
[311036020,1704881437623,-1282.4,0.00030136,2]
[311036021,1704881437632,-1333.52,0.00030136,2]
[311036022,1704881437641,-337.01743465,0.00030136,2]
[311036023,1704881437651,-512.81,0.00030136,2]
[311036024,1704881437660,-500.0,0.00030136,2]
[311036025,1704881437669,-1372.89,0.00030136,2]
[311036026,1704881437680,-567.64,0.00030136,2]
[311036028,1704881437689,-771.92,0.00030136,2]
[311036030,1704881437699,-500.0,0.00030136,2]
[311036032,1704881437708,-500.0,0.00030136,2]
[311036034,1704881437717,-500.0,0.00030136,2]
[311036036,1704881437727,-500.0,0.00030136,2]
[311036038,1704881437736,-500.0,0.00030136,2]
[311036040,1704881437745,-500.0,0.00030136,2]
[311036042,1704881437754,-500.0,0.00030136,2]
[311036044,1704881437763,-500.0,0.00030136,2]
[311036046,1704881437772,-1066.65,0.00030136,2]
[311036047,1704881437781,-500.0,0.00030136,2]
[311036048,1704881437791,-500.0,0.00030136,2]
[311036049,1704881437800,-557.54,0.00030136,2]
[311036050,1704881437809,-1023.67,0.00030136,2]
[311036051,1704881437818,-500.0,0.00030136,2]
[311036052,1704881437827,-500.0,0.00030136,2]
[311036053,1704881437837,-500.0,0.00030136,2]
[311036054,1704881437846,-758.44,0.00030136,2]
[311036055,1704881437856,-500.0,0.00030136,2]
[311036056,1704881437865,-801.53,0.00030136,2]
[311036057,1704881437875,-851.26,0.00030136,2]
[311036058,1704881437884,-1035.26,0.00030136,2]
[311036059,1704881437894,-694.74,0.00030136,2]
[311036060,1704881437904,-500.0,0.00030136,2]
[311036061,1704881437913,-1000.0,0.00030136,7]
[311036062,1704881437922,-500.0,0.00030136,2]
[311036063,1704881437933,-500.0,0.00030136,2]
[311036064,1704881437942,-500.0,0.00030136,2]
[311036065,1704881437952,-1132.05,0.00030136,2]
[311036066,1704881437960,-941.5,0.00030136,2]
[311036067,1704881437969,-500.0,0.00030136,2]
[311036068,1704881437979,-500.0,0.00030136,2]
[311036069,1704881437988,-500.0,0.00030136,2]
[311036070,1704881437997,-500.0,0.00030136,2]
[311036071,1704881438006,-949.87,0.00030136,2]
[311036072,1704881438015,-500.0,0.00030136,2]
[311036073,1704881438024,-996.89,0.00030136,2]
[311036074,1704881438036,-500.0,0.00030136,2]
[311036075,1704881438045,-500.0,0.00030136,2]
[311036076,1704881438054,-500.0,0.00030136,2]
[311036077,1704881438063,-500.0,0.00030136,2]
[311036078,1704881438072,-500.0,0.00030136,2]
[311036079,1704881438081,-500.0,0.00030136,2]
[311036080,1704881438090,-500.0,0.00030136,2]
[311036081,1704881438099,-500.0,0.00030136,2]
[311036082,1704881438108,-500.0,0.00030136,2]
[311036083,1704881438117,-500.0,0.00030136,2]
[311036084,1704881438126,-500.0,0.00030136,2]
[311036085,1704881438135,-500.0,0.00030136,2]
[311036086,1704881438144,-500.0,0.00030136,2]
[311036087,1704881438153,-939.2,0.00030136,2]
[311036088,1704881438162,-1080.0,0.00030136,2]
[311036089,1704881438172,-500.0,0.00030136,2]
[311036090,1704881438181,-500.0,0.00030136,2]
[311036091,1704881438190,-500.0,0.00030136,2]
[311036092,1704881438199,-500.0,0.00030136,2]
[311036093,1704881438209,-1167.71,0.00030136,2]
[311036094,1704881438218,-500.0,0.00030136,2]
[311036096,1704881438227,-500.0,0.00030136,2]
[311036097,1704881438235,-500.0,0.00030136,2]
[311036099,1704881438244,-500.0,0.00030136,2]
[311036101,1704881438253,-1206.29,0.00030136,2]
[311036103,1704881438262,-500.0,0.00030136,2]
[311036105,1704881438271,-500.0,0.00030136,2]
[311036107,1704881438280,-500.0,0.00030136,2]
[311036109,1704881438289,-500.0,0.00030136,2]
[311036111,1704881438298,-1491.8,0.00030136,2]
[311036113,1704881438307,-500.0,0.00030136,2]
[311036115,1704881438316,-215.48796653,0.00030136,2]
[311036117,1704881438326,-1143.76,0.00030136,2]
[311036119,1704881438335,-500.0,0.00030136,2]
[311036121,1704881438345,-500.0,0.00030136,2]
[311036124,1704881438354,-500.0,0.00030136,2]
[311036125,1704881438363,-500.0,0.00030136,2]
[311036128,1704881438372,-500.0,0.00030136,2]
[311036130,1704881438382,-870.06,0.00030136,2]
[311036132,1704881438391,-500.0,0.00030136,2]
[311036134,1704881438400,-1057.78,0.00030136,2]
[311036136,1704881438409,-500.0,0.00030136,2]
[311036137,1704881438419,-500.0,0.00030136,2]
[311036140,1704881438429,-862.44,0.00030136,2]
[311036142,1704881438438,-225.08072609,0.00030136,2]
[311036148,1704881438485,-574.21927391,0.00030136,2]
[311036150,1704881438494,-500.0,0.00030136,2]
[311036152,1704881438503,-500.0,0.00030136,2]
[311036154,1704881438512,-635.46,0.00030136,2]
[311036156,1704881438521,-892.49,0.00030136,2]
[311036158,1704881438530,-500.0,0.00030136,2]
[311036160,1704881438539,-789.11,0.00030136,2]
[311036162,1704881438548,-500.0,0.00030136,2]
[311036164,1704881438557,-500.0,0.00030136,2]
[311036166,1704881438566,-500.0,0.00030136,2]
[311036169,1704881438581,-1334.69,0.00030136,2]
[311036171,1704881438591,-500.0,0.00030136,2]
[311036173,1704881438601,-502.50705869,0.00030136,2]
[311036175,1704881438610,-500.0,0.00030136,2]
[311036177,1704881438620,-605.05,0.00030136,2]
[311036179,1704881438631,-500.0,0.00030136,2]
[311036181,1704881438641,-500.0,0.00030136,2]
[311036183,1704881438651,-500.0,0.00030136,2]
[311036185,1704881438661,-581.2,0.00030136,2]
[311036187,1704881438671,-1163.11,0.00030136,2]
[311036189,1704881438682,-500.0,0.00030136,2]
[311036192,1704881438691,-500.0,0.00030136,2]
[311036194,1704881438701,-1236.69,0.00030136,2]
[311036196,1704881438711,-780.97,0.00030136,2]
[311036198,1704881438721,-500.0,0.00030136,2]
[311036200,1704881438731,-733.6,0.00030136,2]
[311036202,1704881438740,-500.0,0.00030136,2]
[311036204,1704881438750,-500.0,0.00030136,2]
[311036206,1704881438759,-500.0,0.00030136,2]
[311036208,1704881438769,-1176.53,0.00030136,2]
[311036210,1704881438779,-573.36,0.00030136,2]
[311036212,1704881438788,-557.49,0.00030136,2]
[311036214,1704881438797,-500.0,0.00030136,2]
[311036216,1704881438807,-500.0,0.00030136,2]
[311036219,1704881438818,-500.0,0.00030136,2]
[311036221,1704881438827,-500.0,0.00030136,2]
[311036223,1704881438837,-500.0,0.00030136,2]
[311036225,1704881438846,-500.0,0.00030136,2]
[311036227,1704881438856,-968.39,0.00030136,2]
[311036229,1704881438865,-500.0,0.00030136,2]
[311036231,1704881438875,-500.0,0.00030136,2]
[311036233,1704881438885,-500.0,0.00030136,2]
[311036235,1704881438895,-1816.51,0.00030136,2]
[311036237,1704881438905,-563.82,0.00030136,2]
[311036239,1704881438915,-500.0,0.00030136,2]
[311036241,1704881438924,-500.0,0.00030136,2]
[311036243,1704881438935,-500.0,0.00030136,2]
[311036245,1704881438947,-500.0,0.00030136,2]
[311036247,1704881438957,-500.0,0.00030136,2]
[311036249,1704881438967,-500.0,0.00030136,2]
[311036252,1704881438976,-500.0,0.00030136,2]
[311036254,1704881438985,-500.0,0.00030136,2]
[311036256,1704881438995,-500.0,0.00030136,2]
[311036258,1704881439005,-534.63,0.00030136,2]
[311036260,1704881439019,-1461.62,0.00030136,2]
[311036262,1704881439032,-500.0,0.00030136,2]
[311036264,1704881439042,-996.04,0.00030136,2]
[311036266,1704881439052,-500.0,0.00030136,2]
[311036268,1704881439063,-500.0,0.00030136,2]
[311036270,1704881439073,-500.0,0.00030136,2]
[311036271,1704881439083,-500.0,0.00030136,2]
[311036272,1704881439094,-500.0,0.00030136,2]
[311036273,1704881439104,-500.0,0.00030136,2]
[311036274,1704881439114,-500.0,0.00030136,2]
[311036275,1704881439124,-500.0,0.00030136,2]
[311036276,1704881439134,-647.44875469,0.00030136,2]
[311036277,1704881439144,-960.17,0.00030136,2]
[311036278,1704881439155,-667.35,0.00030136,2]
[311036279,1704881439165,-840.11,0.00030136,2]
[311036280,1704881439175,-500.0,0.00030136,2]
[311036281,1704881439186,-383.75,0.00030136,2]
[311036282,1704881439196,-364.73024068,0.00030136,2]
[311036283,1704881439206,-660.71,0.00030136,2]
[311036284,1704881439216,-500.0,0.00030136,2]
[311036286,1704881439226,-500.0,0.00030136,2]
[311036288,1704881439236,-500.0,0.00030136,2]
[311036290,1704881439246,-500.0,0.00030136,2]
[311036292,1704881439256,-181.23,0.00030136,2]
[311036294,1704881439266,-500.0,0.00030136,2]
[311036296,1704881439277,-542.75183603,0.00030136,2]
[311036298,1704881439286,-500.0,0.00030136,2]
[311036301,1704881439300,-500.0,0.00030136,2]
[311036303,1704881439310,-500.0,0.00030136,2]
[311036305,1704881439319,-500.0,0.00030136,2]
[311036307,1704881439330,-500.0,0.00030136,2]
[311036308,1704881439340,-1312.99,0.00030136,2]
[311036309,1704881439349,-500.0,0.00030136,2]
[311036310,1704881439359,-388.39080119,0.00030136,2]
[311036311,1704881439369,-500.0,0.00030136,2]
[311036312,1704881439379,-1132.71,0.00030136,2]
[311036313,1704881439389,-500.0,0.00030136,2]
[311036314,1704881439399,-505.59106937,0.00030136,2]
[311036315,1704881439409,-500.0,0.00030136,2]
[311036316,1704881439419,-534.51356825,0.00030136,2]
[311036317,1704881439429,-500.0,0.00030136,2]
[311036318,1704881439439,-1040.86,0.00030136,2]
[311036319,1704881439449,-500.0,0.00030136,2]
[311036320,1704881439458,-500.0,0.00030136,2]
[311036322,1704881439468,-500.0,0.00030136,2]
[311036324,1704881439477,-1240.01,0.00030136,2]
[311036327,1704881439487,-541.1,0.00030136,2]
[311036329,1704881439497,-1306.68,0.00030136,2]
[311036331,1704881439506,-154.95264897,0.00030136,2]
[311036333,1704881439516,-500.0,0.00030136,2]
[311036336,1704881439525,-1444.22,0.00030136,2]
[311036338,1704881439535,-349.49451828,0.00030136,2]
[311036341,1704881439555,-152.04548172,0.00030136,2]
[311036343,1704881439565,-500.0,0.00030136,2]
[311036345,1704881439575,-500.0,0.00030136,2]
[311036347,1704881439584,-500.0,0.00030136,2]
[311036349,1704881439594,-1162.38,0.00030136,2]
[311036351,1704881439603,-500.0,0.00030136,2]
[311036354,1704881439613,-2177.87,0.00030136,2]
[311036356,1704881439622,-706.06,0.00030136,2]
[311036358,1704881439632,-500.0,0.00030136,2]
[311036360,1704881439642,-656.28794637,0.00030136,2]
[311036362,1704881439654,-346.61205363,0.00030136,2]
[311036385,1704881439851,-500.0,0.00030136,2]
[311036387,1704881439863,-589.53176599,0.00030136,2]
[311036397,1704881439947,-17.26823401,0.00030136,2]
[311036399,1704881439956,-500.0,0.00030136,2]
[311036401,1704881439966,-500.0,0.00030136,2]
[311036403,1704881439976,-500.0,0.00030136,2]
[311036405,1704881439986,-500.0,0.00030136,2]
[311036407,1704881439996,-500.0,0.00030136,2]
[311036409,1704881440006,-500.0,0.00030136,2]
[311036411,1704881440015,-500.0,0.00030136,2]
[311036413,1704881440025,-500.0,0.00030136,2]
[311036415,1704881440038,-500.0,0.00030136,2]
[311036417,1704881440048,-510.28048295,0.00030136,2]
[311036419,1704881440057,-1002.12,0.00030136,2]
[311036421,1704881440067,-571.76,0.00030136,2]
[311036423,1704881440076,-500.0,0.00030136,2]
[311036425,1704881440086,-500.0,0.00030136,2]
[311036427,1704881440095,-500.0,0.00030136,2]
[311036429,1704881440105,-500.0,0.00030136,2]
[311036431,1704881440115,-605.95,0.00030136,2]
[311036433,1704881440126,-1223.48,0.00030136,2]
[311036435,1704881440136,-765.02,0.00030136,2]
[311036437,1704881440146,-591.4,0.00030136,2]